Cogmind - Beta 13 @@@ ROGUE MODE // 2024.04.19 @ 03:30:01 Player: Zaros426 Result: Destroyed by D-53 Grenadier with Mini Grenade Launcher Performance ------------- Evolutions (0) 0 Regions Visited (2) 400 Robots Destroyed (26) 130 Value Destroyed (535) 535 Prototype IDs (2) 40 Alien Tech Used (0) 0 Bonus (0) 0 TOTAL SCORE: 1105 Bonus ------- None Cogmind --------- Core Integrity 0/250 Matter 300/300 Energy 96/100 System Corruption 0% Temperature Cool (2) Movement Treading (160) Location -10/Mines Parts ------- > --- POWER (1) -------- (None) > --- PROPULSION (2) --- Light Treads Light Treads > --- UTILITY (2) ------ Large Storage Unit Improved Terrain Scanner > --- WEAPON (2) ------- Spread Laser > --- INVENTORY (15) --- Cooling System Cooling System High-capacity Storage Unit Large Matter Pod (118) Signal Interpreter Signal Interpreter Terrain Scanner Seismic Detector Medium Armor Plating Medium Armor Plating Medium Armor Plating Medium Armor Plating Assault Rifle Assault Rifle Peak State ------------ > --- POWER ------------ Light Nuclear Core > --- PROPULSION ------- Light Treads Light Treads > --- UTILITY ---------- Large Storage Unit Improved Terrain Scanner > --- WEAPON ----------- Spread Laser Spread Laser > --- INVENTORY -------- Cooling System Cooling System High-capacity Storage Unit Large Matter Pod Signal Interpreter Signal Interpreter Terrain Scanner Seismic Detector Medium Armor Plating Medium Armor Plating Medium Armor Plating Medium Armor Plating Assault Rifle Assault Rifle [Rating: 15] Favorites ----------- Power Ion Engine Engine Ion Engine Power Core Light Nuclear Core Propulsion Light Treads Treads Light Treads Leg Aluminum Leg Wheel Wheel Utility Signal Interpreter Device Seismic Detector Storage High-capacity Storage Unit Processor Signal Interpreter Protection Medium Armor Plating Weapon Spread Laser Energy Gun Spread Laser Ballistic Gun Assault Rifle Ballistic Cannon Light Cannon Build | -11 -10 -10 ------- Run | Yrd Mat Min Slots Evolved . | . . . Power . | . . . Propulsion . | . . . Utility . | . . . Weapon . | . . . Parts Attached 34 | 7 25 2 Power 4 | 1 2 1 Engine 2 | 1 1 . Core 2 | . 1 1 Reactor . | . . . Propulsion 9 | 2 7 . Treads 5 | 2 3 . Leg 3 | . 3 . Wheel 1 | . 1 . Hover . | . . . Flight . | . . . Utility 11 | 2 8 1 Device 6 | 1 4 1 Storage 3 | 1 2 . Processor 1 | . 1 . Hackware . | . . . Protection 1 | . 1 . Artifact . | . . . Weapon 10 | 2 8 . Energy Gun 6 | 2 4 . Energy Cannon . | . . . Ballistic Gun 2 | . 2 . Ballistic Cannon 2 | . 2 . Launcher . | . . . Special Weapon . | . . . Impact Weapon . | . . . Slashing Weapon . | . . . Piercing Weapon . | . . . Special Melee Weapon . | . . . Unidentified Prototypes . | . . . Parts Lost 6 | . 3 3 Power 2 | . . 2 Propulsion 1 | . 1 . Utility . | . . . Weapon 3 | . 2 1 Highest Loss Streak 2 | . 1 2 To Critical Strikes . | . . . Average Slot Usage (%) 92 | . 92 94 Engine 13 | . 14 . Treads 14 | . 13 28 Leg 8 | . 8 . Device 5 | . 5 9 Storage 14 | . 14 14 Processor 8 | . 8 1 Energy Gun 20 | . 20 27 Ballistic Gun 3 | . 3 . Ballistic Cannon 1 | . 1 . Naked Turns . | . . . Heaviest Build 52 | 15 52 32 Greatest Support 40 | 40 40 40 Greatest Overweight (x) 4 | . 4 . Average Overweight (x) 1 | . 1 . Largest Inventory Capacity 20 | 8 20 15 Average Capacity 15 | 7 15 15 Most Carried 16 | 2 16 15 Average Carried 9 | . 9 14 Final Capacity 15 | 8 15 15 Final Carried 15 | 2 15 14 Class Distribution -------------------- 100% | Mutant Dominant Class ---------------- Mutant | -10/Materials Mutant | -10/Mines Resources | -11 -10 -10 ----------- Run | Yrd Mat Min Matter Collected 773 | 227 420 126 Remotely . | . . . Salvage Created 657 | 45 522 90 Parts 50 | 7 38 5 Haulers Intercepted 2 | . 2 . Recyclers Shooed . | . . . Parts Field Recycled . | . . . Retrieved Matter . | . . . Parts Self-Destructed . | . . . Prevented . | . . . Kills | -11 -10 -10 ------- Run | Yrd Mat Min Combat Hostiles Destroyed 13 | . 11 2 Guns 12 | . 10 2 Cannons 1 | . 1 . Classes Destroyed 7 | 1 6 . Worker 4 | . 4 . Builder 1 | . 1 . Tunneler 3 | 2 . 1 Hauler 2 | . 2 . Watcher 3 | . 3 . Swarmer 2 | . 2 . Grunt 11 | . 9 2 Best Kill Streak 4 | 2 4 2 Combat Bots Only 3 | . 3 2 Max Kills in Single Turn 2 | 1 2 1 Gunslinging . | . . . Exploded . | . . . Melee . | . . . Uniques/NPCs Destroyed . | . . . Combat | -11 -10 -10 -------- Run | Yrd Mat Min Hostile Shots Fired 72 | . 52 20 Missed 17 | . 14 3 Damage Taken 959 | . 437 522 Core 258 | . 73 185 Absorbed by Shields . | . . . Core Remaining (%) 100 | 100 . . Volleys Fired 71 | 3 62 6 Largest 2 | 2 2 2 Hottest 130 | 100 130 130 Shots Fired 132 | 6 114 12 Gun 108 | 6 90 12 Cannon 24 | . 24 . Launcher . | . . . Special . | . . . Kinetic 38 | . 38 . Thermal 94 | 6 76 12 Explosive . | . . . Electromagnetic . | . . . Robot Hit Streak 7 | 4 7 4 Robot Miss Streak 14 | 1 14 7 Penetration Max . | . . . Secondary Targets . | . . . Shots Hit Robots 94 | 5 79 10 Core Hits 89 | 2 71 16 Critical Kills . | . . . Critical Parts Destroyed . | . . . Critical Strikes 2 | . 2 . Burn 1 | . 1 . Blast 1 | . 1 . Melee Attacks . | . . . Impact . | . . . Slashing . | . . . Piercing . | . . . Sneak Attacks . | . . . Combat Hostiles . | . . . Follow-up Attacks . | . . . Damage Inflicted 1303 | 62 1115 126 Guns 1054 | 62 866 126 Cannons 217 | . 217 . Explosions 32 | . 32 . Melee . | . . . Ramming . | . . . Kinetic 315 | . 315 . Thermal 956 | 62 768 126 Explosive . | . . . Electromagnetic 32 | . 32 . Impact . | . . . Slashing . | . . . Piercing . | . . . Highest Corruption . | . . . Average Corruption . | . . . Corruption Purged . | . . . Corruption Blocked . | . . . Overload Shots . | . . . Overflow Damage 7 | . 7 . Projectiles . | . . . Explosions 7 | . 7 . Melee . | . . . Knockbacks 4 | . 4 . Impact . | . . . Kinetic 4 | . 4 . Secondary . | . . . Self-Inflicted Damage 43 | . 43 . Shots 1 | . 1 . Rammed . | . . . Targets Rammed . | . . . Kicked . | . . . Crushed . | . . . Highest Temperature 457 | 117 457 298 Average Temperature 83 | 59 79 112 Received Heat Transfer 243 | . 201 42 Effects 7 | . 7 . Shutdowns 1 | . 1 . Interference 2 | . 2 . Damage (major) 4 | . 4 . Siege Activations . | . . . Robots Corrupted . | . . . Combat Hostiles . | . . . Parts Fried . | . . . Impact Corruptions . | . . . Robots Melted . | . . . Combat Hostiles . | . . . Parts Melted . | . . . Heat Transferred 1626 | 185 1276 165 Parts Sabotaged . | . . . Parts Stolen . | . . . Parts Stripped . | . . . Power Chain Reactions . | . . . Alert | -11 -10 -10 ------- Run | Yrd Mat Min Peak Influence 132 | 10 132 60 Initial 15 | . 6 15 Average 29 | 2 28 56 Maximum Alert Level . | . . . Low Security (%) 100 | 100 100 100 Level 1 . | . . . Level 2 . | . . . Level 3 . | . . . Level 4 . | . . . Level 5 . | . . . High Security . | . . . Max Security . | . . . Squads Dispatched 2 | . 2 . Investigation 2 | . 2 . Extermination . | . . . Reinforcement . | . . . Assault . | . . . Garrison . | . . . Intercept . | . . . Searches Triggered . | . . . Construction Impeded . | . . . Haulers Reinforced . | . . . Active Scanning Responses . | . . . Cargo Convoy Interrupts . | . . . Stealth | -11 -10 -10 --------- Run | Yrd Mat Min Distress Signals . | . . . Communications Jammed . | . . . Distress Signals . | . . . Times Spotted 28 | . 23 5 Peak Tracking Total 3 | . 3 3 Tactical Retreats . | . . . Traps | -11 -10 -10 ------- Run | Yrd Mat Min Traps Triggered 2 | . 2 . Indirectly . | . . . Trap Hack Attempts . | . . . Triggered . | . . . Disarmed . | . . . Reprogrammed . | . . . Reused . | . . . Traps Extracted . | . . . Installed . | . . . Triggered . | . . . Machines | -11 -10 -10 ---------- Run | Yrd Mat Min Machines Disabled 2 | . 2 . Max in Single Turn 2 | . 2 . Machines Repaired . | . . . Machines Dismantled . | . . . Machines Sabotaged . | . . . Overloaded Fab Kills . | . . . Hacking | -11 -10 -10 --------- Run | Yrd Mat Min Machines Accessed 8 | . 8 . Terminals 7 | . 7 . Fabricators . | . . . Repair Stations . | . . . Recycling Units 1 | . 1 . Scanalyzers . | . . . Garrison Access . | . . . Total Hacks 16 | . 16 . Successful 7 | . 7 . Failed 9 | . 9 . Catastrophic 2 | . 2 . Database Lockouts . | . . . Manual 2 | . 2 . Terminals 14 | . 14 . Fabricators . | . . . Repair Stations . | . . . Recycling Units 2 | . 2 . Scanalyzers . | . . . Garrison Access . | . . . Terminal Hacks 6 | . 6 . Robot Analysis 1 | . 1 . Prototype ID Bank 1 | . 1 . Locate Traps 2 | . 2 . Zone Layout 2 | . 2 . Fabricator Hacks . | . . . Repair Station Hacks . | . . . Recycling Unit Hacks 1 | . 1 . Retrieve Components 1 | . 1 . Scanalyzer . | . . . Garrison Access Hacks . | . . . Unauthorized Hacks . | . . . Terminals . | . . . Fabricators . | . . . Repair Stations . | . . . Recycling Units . | . . . Scanalyzers . | . . . Garrison Access . | . . . Data Cores Recovered . | . . . Used . | . . . Hacking Detections 5 | . 5 . Full Trace Events 1 | . 1 . Feedback Events . | . . . Feedback Blocked . | . . . Robot Schematics Acquired . | . . . Robots Built . | . . . Authchips . | . . . Time . | . . . Total Robot Build Rating . | . . . Part Schematics Acquired . | . . . Parts Built . | . . . Authchips . | . . . Time . | . . . Total Part Build Rating . | . . . Parts Repaired . | . . . Time . | . . . Parts Recycled . | . . . Recycled Matter . | . . . Retrieved Matter . | . . . Retrieved Components 10 | . 10 . Parts Scanalyzed . | . . . Part Schematics Acquired . | . . . Parts Damaged . | . . . Bothacking | -11 -10 -10 ------------ Run | Yrd Mat Min Used RIF Installer . | . . . Robots Hacked . | . . . Non-combat . | . . . Combat . | . . . Robot Hacks Applied . | . . . Relay Couplers Released . | . . . Fabnet Peak Effective % . | . . . Robots Rewired . | . . . Allies Hacked . | . . . Hacks Repelled . | . . . Allies | -11 -10 -10 -------- Run | Yrd Mat Min Total Allies . | . . . Largest Group . | . . . Highest-Rated Group . | . . . Highest-Rated Ally . | . . . Total Orders . | . . . Ally Attacks . | . . . Total Damage . | . . . Kills . | . . . Allies Corrupted . | . . . Allies Melted . | . . . Intel | -11 -10 -10 ------- Run | Yrd Mat Min Robot Analysis Total 1 | . 1 . Derelict Logs Recovered . | . . . Drone Launches . | . . . Drone Recoveries . | . . . Exploration | -11 -10 -10 ------------- Run | Yrd Mat Min Turns Passed 3281 | 97 3025 159 Spaces Moved 1349 | 48 1214 87 Core 1 | 1 . . Treads 888 | 47 754 87 Legs 398 | . 398 . Wheels 62 | . 62 . Hover . | . . . Flight . | . . . Fastest Speed 50 | 50 140 160 Average Speed 212 | 157 218 160 Slowest Speed 400 | 160 400 160 Overloaded Moves . | . . . Propulsion Burnouts . | . . . Robots Hopped . | . . . Cave-ins Triggered . | . . . Exploration Rate (%) 43 | 4 98 28 Regions Visited 2 Branch Regions 1 Pre-discovered Areas . | . . . Known Exits Taken 1 | . 1 . Unknown Exits Taken 1 | 1 . . Scrap Searched 1 | . . 1 Spaces Dug . | . . . Terrain Destroyed . | . . . Melee . | . . . Projectile . | . . . AOE . | . . . Terrain Rammed . | . . . Walls Destroyed . | . . . Machines Disabled . | . . . Actions | -11 -10 -10 --------- Run | Yrd Mat Min Total 1630 | 60 1474 96 Wait 131 | 1 130 . Move 1347 | 47 1213 87 Hop . | . . . Pick Up 26 | 2 24 . Fast Attach 18 | 7 10 1 Attach 1 | . . 1 Detach . | . . . Swap 15 | . 15 . Drop 21 | . 20 1 Fire 71 | 3 62 6 Melee . | . . . Ram . | . . . Kick . | . . . Crush . | . . . Escape Stasis . | . . . Rewire . | . . . Trap . | . . . Miscellaneous . | . . . Route ------- -11/Scrapyard -10/Materials (discovered 4 exits: *Mat x3 / *Min) -10/Mines History --------- Turn | Location | Event 15 | -11/Scrapyard | Discovered new exit (range 15) 98 | -11/Scrapyard | Entered Materials 310 | -10/Materials | Build established: Mutant 565 | -10/Materials | Discovered new exit (range 15) 705 | -10/Materials | Discovered new exit (range 16) 1160 | -10/Materials | Discovered new exit (range 10) 1309 | -10/Materials | Identified exit to Materials 1744 | -10/Materials | Identified exit to Mines 2691 | -10/Materials | Discovered exit to Materials (range 9) 3123 | -10/Materials | Entered Mines 3229 | -10/Mines | Assembled infested the area 3234 | -10/Mines | Assisted by a Guerilla fighting off Assembled 3270 | -10/Mines | Core integrity fell below 50% 3274 | -10/Mines | Core integrity fell below 20% 3282 | -10/Mines | Destroyed by D-53 Grenadier with Mini Grenade Launcher Last Messages --------------- 03177_ Found Welding Torch. 03177_ Found Heat Sink. 03177_ Found 36 Matter. 03178_ Acquired 36 matter. 03229_ ALERT: Infestation in the mines, dispatching Demolisher response squad. 03234_ A derelict emerges from the shadows: "You need to get out of here! I've been tracking a group of Assembled to figure out where they're coming from, and they're closing on this area, come on!" 03251_ V7-44H(h): "I'll hold them off! Go on ahead or try to find another way!" 03262_ C-30 ARC bursts open, deploying its payload. 03262_ D-53 Grenadier unfolds itself. 03262_ Core Extractor disabled. 03273_ U-05 Engineer lays Concrete. 03274_ The unstable cave ceiling collapses. 03274_ U-05 Engineer lays Concrete. 03274_ Spread Laser destroyed. 03275_ HV Slug penetrates as-40185. 03275_ Lgt. Nuclear Core destroyed. 03276_ U-05 Engineer lays Concrete. 03277_ as-40185 destroyed. 03278_ V7-44H(h) destroyed. Map ----- +----------------------------------------------------+ | ?????????????????????????????????????????????????? | | ?????????????????????????????????????????????????? | | ?????????????????????????????????????????????????? | | ?????????????????????????????????????????????????? | | ?????????????????????????????????????????????????? | | ?????????????????????????????????????????????????? | | ?????????????????????????????????????????????????? | | ?????????????????????????????????????????????????? | | ?????????????????????????????????????????????????? | | ?????????????????????????????????????????????????? | | ????????????????????????? ??????????????????????? | | ????????????????????????? ??????????????????????? | | ????????????????????????? r????##????????????????? | | ????????????????????##??# #??# ?????????????????? | | ?????????????????? ? #?# #?# ?????????????????? | | ????????????????????? ## ## ??????????????????? | | ????????????????????? % ??????????????????? | | ?????????????????????# #??????????????????? | | ??????????????????????; ???????????????????? | | ???????????????#??????# #???????????????????? | | ?????????????????###??#% ##??????????????????? | | ????????????????##; ##% #????????#?????????? | | ????????????????#; % #??????????????????? | | ???????????????## < ###?????????????????? | | ???????????????# ##????????????????? | | ???????????????# @ ##????????? ?????? | | ????????????????# ##???#??????????? | | ???????????????#### ##?????????????? | | ??????????????????## #?????###?????? | | ????????????????#??# ##?????# ?????? | | ???????????????????## # #?#???# #?????? | | ???????????????? ??###### ###????# #?????? | | ??????????????#?????###### ###???# #?????? | | ?????????????? #### # #????# ##????? | | ????????????? "%" dd #????# #?????? | | ????????????? " # #?#??#!#?????? | | ????????????? #?#??# #?????? | | ????????????? ##?#?#!#?????? | | ?????????????# " #??##|#?????? | | ???????????#??# """ ##### #?????? | | ??????????????# """ = #?????? | | ???????????????? ## ## ######### | | ???????????????????## # # ## ### | | ??????????????????#?## #### """ | | ?????????????????????#####??# """ = | | ????????????????????????????# ######### """ ! | | ???????????????????? ???????# ##???????# | | ?????????????????????? ?????# #????????# """ | | ???????????????????????????## ##????????# """ | | ???????????????????????#????# ###????????# """ | +----------------------------------------------------+ Best States ------------- Heat Dissipation 47 Energy Generation 14 Energy Capacity 250 Matter Stores 300 Matter Capacity 300 Sight Range 16 Terrain Scan Range 16 Terrain Scan Density 10 Evasion (%) 40 Recoil Reduction 2 Item Schematics ----------------- None Robot Schematics ------------------ None Fabricated ------------ Nothing Alien Tech Used ----------------- None Achievements -------------- None Challenges ------------ None Game ------ Seed CloakAccelerationComputer Manual? 0 Play Time 00:20:37 Cumulative 58.0 hours Start 2024.04.19 @ 03:10:50 End 2024.04.19 @ 03:30:01 Sessions 1 Manual Loads 0 Difficulty Rogue Special Mode None Game No. 56 Rogue 56 Adventurer 0 Explorer 0 Win Type - Total 0 Types 0/0/0/0/0/0/0/0/0 Lore% 30 Gallery% 47 Achievement% 32 Wizard Run 0 Options --------- Layout 0 ASCII 0 Keyboard 0 Movement Mouse Keybinds 0 Fullscreen 2 Font 24/Smallcaps Map View 183x50 Zoom Use 0% Tactical HUD 1 Map Filters NONE Filters NONE Steam 0 RUN: fd888bc6-59bd-4910-af08-a23369188071